fUST/lending_fUST_20250610
["ID","MTS","AMOUNT","RATE_DAILY","PERIOD"]
[365236226,1749559850424,-460.0,0.00021643,4]
[365236228,1749559850434,-666.27,0.00021643,4]
[365236230,1749559850444,-460.0,0.00021643,4]
[365236232,1749559850453,-460.0,0.00021643,4]
[365236234,1749559850463,-460.0,0.00021643,4]
[365236236,1749559850472,-373.67108666,0.00021643,4]
[365236238,1749559850482,-460.0,0.00021643,4]
[365236240,1749559850492,-460.0,0.00021643,4]
[365236242,1749559850502,-460.0,0.00021643,4]
[365236244,1749559850511,-460.0,0.00021643,4]
[365236246,1749559850520,-460.0,0.00021643,4]
[365236248,1749559850531,-562.36945495,0.00021643,4]
[365236250,1749559850540,-772.22,0.00021643,4]
[365236252,1749559850549,-460.0,0.00021643,4]
[365236254,1749559850563,-460.0,0.00021643,4]
[365236256,1749559850572,-460.0,0.00021643,4]
[365236258,1749559850581,-460.0,0.00021643,4]
[365236260,1749559850590,-500.0,0.00021643,4]
[365236262,1749559850600,-353.73860318,0.00021643,4]
[365236264,1749559850609,-383.21636399,0.00021643,4]
[365236266,1749559850619,-460.0,0.00021643,4]
[365236268,1749559850628,-460.0,0.00021643,4]
[365236270,1749559850637,-460.0,0.00021643,4]
[365236272,1749559850645,-329.13846385,0.00021643,4]
[365236274,1749559850655,-460.0,0.00021643,4]
[365236276,1749559850664,-340.94274445,0.00021643,4]
[365236278,1749559850673,-460.0,0.00021643,4]
[365236280,1749559850682,-460.0,0.00021643,4]
[365236281,1749559850691,-460.0,0.00021643,4]
[365236283,1749559850701,-460.0,0.00021643,4]
[365236285,1749559850710,-460.0,0.00021643,4]
[365236287,1749559850719,-460.0,0.00021643,4]
[365236289,1749559850728,-390.0,0.00021643,4]
[365236291,1749559850738,-460.0,0.00021643,4]
[365236293,1749559850747,-380.0,0.00021643,4]
[365236295,1749559850755,-460.0,0.00021643,4]
[365236297,1749559850766,-534.5852295,0.00021643,4]
[365236299,1749559850778,-460.0,0.00021643,4]
[365236301,1749559850788,-390.0,0.00021643,4]
[365236303,1749559850797,-396.77734418,0.00021643,4]
[365236305,1749559850807,-460.0,0.00021643,4]
[365236307,1749559850816,-460.0,0.00021643,4]
[365236309,1749559850825,-460.0,0.00021643,4]
[365236311,1749559850835,-350.0,0.00021643,4]
[365236313,1749559850844,-319.922574,0.00021643,4]
[365236315,1749559850854,-460.0,0.00021643,4]
[365236325,1749559850934,-460.0,0.00021643,4]
[365236327,1749559850943,-460.0,0.00021643,4]
[365236329,1749559850952,-400.0,0.00021643,4]
[365236331,1749559850961,-460.0,0.00021643,4]
[365236333,1749559850970,-460.0,0.00021643,4]
[365236335,1749559850980,-460.0,0.00021643,4]
[365236336,1749559850989,-400.0,0.00021643,4]
[365236338,1749559850999,-460.0,0.00021643,4]
[365236340,1749559851008,-460.0,0.00021643,4]
[365236342,1749559851017,-460.0,0.00021643,4]
[365236344,1749559851027,-460.0,0.00021643,4]
[365236346,1749559851036,-460.0,0.00021643,4]
[365236348,1749559851046,-460.0,0.00021643,4]
[365236350,1749559851056,-460.0,0.00021643,4]
[365236352,1749559851065,-460.0,0.00021643,4]
[365236354,1749559851074,-460.0,0.00021643,4]
[365236356,1749559851083,-400.0,0.00021643,4]
[365236358,1749559851093,-460.0,0.00021643,4]
[365236360,1749559851102,-460.0,0.00021643,4]
[365236362,1749559851111,-460.0,0.00021643,4]
[365236364,1749559851120,-400.0,0.00021643,4]
[365236366,1749559851129,-460.0,0.00021643,4]
[365236368,1749559851138,-460.0,0.00021643,4]
[365236370,1749559851147,-460.0,0.00021643,4]
[365236372,1749559851157,-460.0,0.00021643,4]
[365236374,1749559851166,-390.0,0.00021643,4]
[365236376,1749559851176,-460.0,0.00021643,4]
[365236378,1749559851186,-460.0,0.00021643,4]
[365236380,1749559851195,-460.0,0.00021643,4]
[365236382,1749559851205,-460.0,0.00021643,4]
[365236384,1749559851216,-460.0,0.00021643,4]
[365236386,1749559851225,-460.0,0.00021643,4]
[365236388,1749559851234,-460.0,0.00021643,4]
[365236390,1749559851244,-390.0,0.00021643,4]
[365236392,1749559851254,-460.0,0.00021643,4]
[365236394,1749559851263,-460.0,0.00021643,4]
[365236396,1749559851274,-460.0,0.00021643,4]
[365236398,1749559851285,-460.0,0.00021643,4]
[365236400,1749559851295,-530.8897982,0.00021643,4]
[365236402,1749559851304,-460.0,0.00021643,4]
[365236404,1749559851313,-460.0,0.00021643,4]
[365236406,1749559851323,-380.0,0.00021643,4]
[365236408,1749559851332,-380.0,0.00021643,4]
[365236410,1749559851341,-460.0,0.00021643,4]
[365236412,1749559851350,-449.52861066,0.00021643,4]
[365236414,1749559851360,-460.0,0.00021643,4]
[365236416,1749559851369,-460.0,0.00021643,4]
[365236417,1749559851378,-460.0,0.00021643,4]
[365236419,1749559851388,-460.0,0.00021643,4]
[365236421,1749559851398,-460.0,0.00021643,4]
[365236422,1749559851408,-2164.3,0.00021643,4]
[365236423,1749559851418,-460.0,0.00021643,4]
[365236424,1749559851429,-461.76,0.00021643,4]
[365236425,1749559851439,-380.0,0.00021643,4]
[365236426,1749559851448,-460.0,0.00021643,4]
[365236427,1749559851458,-460.0,0.00021643,4]
[365236428,1749559851468,-502.07,0.00021643,4]
[365236429,1749559851478,-477.30196012,0.00021643,4]
[365236430,1749559851488,-1095.98,0.00021643,4]
[365236431,1749559851498,-460.0,0.00021643,4]
[365236432,1749559851508,-460.0,0.00021643,4]
[365236433,1749559851518,-376.62038587,0.00021643,4]
[365236434,1749559851528,-460.0,0.00021643,4]
[365236435,1749559851538,-460.0,0.00021643,4]
[365236436,1749559851547,-703.92,0.00021643,4]
[365236437,1749559851557,-460.0,0.00021643,4]
[365236439,1749559851570,-766.69,0.00021643,4]
[365236441,1749559851579,-460.0,0.00021643,4]
[365236443,1749559851589,-553.18,0.00021643,4]
[365236445,1749559851598,-460.0,0.00021643,4]
[365236447,1749559851609,-460.0,0.00021643,4]
[365236449,1749559851618,-460.0,0.00021643,4]
[365236451,1749559851627,-329.80507402,0.00021643,4]
[365236453,1749559851636,-460.0,0.00021643,4]
[365236455,1749559851647,-350.0,0.00021643,2]
[365236457,1749559851657,-460.0,0.00021643,4]
[365236459,1749559851667,-460.0,0.00021643,4]
[365236461,1749559851676,-460.0,0.00021643,4]
[365236462,1749559851685,-460.0,0.00021643,4]
[365236464,1749559851695,-1193.4,0.00021643,4]
[365236466,1749559851704,-460.0,0.00021643,4]
[365236468,1749559851713,-460.0,0.00021643,4]
[365236470,1749559851722,-460.0,0.00021643,4]
[365236472,1749559851732,-460.0,0.00021643,4]
[365236475,1749559851741,-460.0,0.00021643,4]
[365236477,1749559851750,-460.0,0.00021643,4]
[365236478,1749559851759,-627.74,0.00021643,4]
[365236480,1749559851768,-460.0,0.00021643,4]
[365236482,1749559851778,-460.0,0.00021643,4]
[365236484,1749559851787,-460.0,0.00021643,4]
[365236486,1749559851797,-460.0,0.00021643,4]
[365236488,1749559851806,-460.0,0.00021643,4]
[365236490,1749559851815,-460.0,0.00021643,4]
[365236492,1749559851825,-400.0,0.00021643,4]
[365236495,1749559851834,-460.0,0.00021643,4]
[365236497,1749559851844,-460.0,0.00021643,4]
[365236498,1749559851853,-380.0,0.00021643,4]
[365236500,1749559851863,-484.39,0.00021643,4]
[365236502,1749559851873,-460.0,0.00021643,4]
[365236504,1749559851882,-443.78409979,0.00021643,4]
[365236507,1749559851891,-331.24740836,0.00021643,4]
[365236508,1749559851901,-460.0,0.00021643,4]
[365236510,1749559851910,-460.0,0.00021643,4]
[365236512,1749559851919,-1362.12,0.00021643,4]
[365236514,1749559851929,-460.0,0.00021643,4]
[365236516,1749559851940,-460.0,0.00021643,4]
[365236518,1749559851952,-460.0,0.00021643,4]
[365236520,1749559851962,-460.0,0.00021643,4]
[365236522,1749559851972,-460.0,0.00021643,4]
[365236524,1749559851981,-460.0,0.00021643,4]
[365236526,1749559851991,-460.0,0.00021643,4]
[365236528,1749559852001,-460.0,0.00021643,4]
[365236536,1749559852074,-560.62152779,0.00021643,4]
[365236538,1749559852084,-546.82,0.00021643,4]
[365236540,1749559852094,-761.28,0.00021643,4]
[365236542,1749559852104,-1957.52,0.00021643,4]
[365236544,1749559852114,-390.0,0.00021643,4]
[365236546,1749559852124,-511.58,0.00021643,4]
[365236548,1749559852135,-1042.17,0.00021643,4]
[365236550,1749559852145,-460.0,0.00021643,4]
[365236552,1749559852155,-686.58,0.00021643,4]
[365236554,1749559852165,-460.0,0.00021643,4]
[365236556,1749559852176,-460.0,0.00021643,4]
[365236558,1749559852186,-460.0,0.00021643,4]
[365236560,1749559852196,-1188.08,0.00021643,4]
[365236562,1749559852206,-460.0,0.00021643,4]
[365236564,1749559852216,-460.0,0.00021643,4]
[365236566,1749559852225,-370.0,0.00021643,4]
[365236568,1749559852235,-460.0,0.00021643,4]
[365236570,1749559852245,-460.0,0.00021643,4]
[365236572,1749559852255,-400.0,0.00021643,4]
[365236574,1749559852264,-410.0,0.00021643,4]
[365236576,1749559852274,-460.0,0.00021643,4]
[365236578,1749559852292,-390.0,0.00021643,4]
[365236580,1749559852302,-460.0,0.00021643,4]
[365236582,1749559852312,-460.0,0.00021643,4]
[365236584,1749559852323,-460.0,0.00021643,4]
[365236586,1749559852333,-481.49,0.00021643,4]
[365236588,1749559852344,-2495.68,0.00021643,4]
[365236591,1749559852355,-460.0,0.00021643,4]
[365236592,1749559852366,-705.29,0.00021643,4]
[365236595,1749559852378,-234.7704918,0.00021643,4]
[365236597,1749559852388,-460.0,0.00021643,4]
[365236599,1749559852399,-460.0,0.00021643,4]
[365236601,1749559852409,-2309.7,0.00021643,4]
[365236603,1749559852419,-460.0,0.00021643,4]
[365236605,1749559852429,-460.0,0.00021643,4]
[365236607,1749559852439,-1981.5,0.00021643,4]
[365236609,1749559852449,-460.0,0.00021643,4]
[365236611,1749559852459,-460.0,0.00021643,4]
[365236613,1749559852469,-360.0,0.00021643,4]
[365236615,1749559852478,-683.41,0.00021643,4]
[365236617,1749559852487,-460.0,0.00021643,4]
[365236619,1749559852497,-460.0,0.00021643,4]
[365236621,1749559852507,-460.0,0.00021643,4]
[365236623,1749559852517,-400.0,0.00021643,4]
[365236625,1749559852527,-460.0,0.00021643,4]
[365236627,1749559852538,-460.0,0.00021643,4]
[365236629,1749559852547,-460.0,0.00021643,4]
[365236631,1749559852558,-460.0,0.00021643,4]
[365236633,1749559852573,-1032.36,0.00021643,4]
[365236635,1749559852583,-460.0,0.00021643,4]
[365236637,1749559852593,-460.0,0.00021643,4]
[365236639,1749559852603,-460.41,0.00021643,4]
[365236642,1749559852618,-460.0,0.00021643,4]
[365236645,1749559852640,-460.0,0.00021643,4]
[365236648,1749559852656,-570.20991369,0.00021643,4]
[365236651,1749559852674,-460.0,0.00021643,4]
[365236654,1749559852695,-771.85,0.00021643,4]
[365236657,1749559852713,-696.06,0.00021643,4]
[365236660,1749559852730,-1463.68,0.00021643,4]
[365236663,1749559852746,-1641.54,0.00021643,4]
[365236665,1749559852759,-405.72572788,0.00021643,4]
[365236668,1749559852776,-380.0,0.00021643,4]
[365236671,1749559852796,-460.0,0.00021643,4]
[365236674,1749559852815,-403.49399718,0.00021643,4]
[365236677,1749559852827,-460.0,0.00021643,4]
[365236680,1749559852848,-2095.73,0.00021643,4]
[365236682,1749559852862,-460.0,0.00021643,4]
[365236685,1749559852878,-460.0,0.00021643,4]
[365236688,1749559852891,-460.0,0.00021643,4]
[365236690,1749559852906,-460.0,0.00021643,4]
[365236693,1749559852920,-203.2182719,0.00021643,4]
[365236696,1749559852934,-550.0,0.00021643,4]
[365236698,1749559852948,-840.11,0.00021643,2]
[365236701,1749559852962,-400.0,0.00021643,4]
[365236703,1749559852977,-460.0,0.00021643,4]
[365236706,1749559852991,-460.0,0.00021643,4]
[365236708,1749559853005,-460.0,0.00021643,4]
[365236711,1749559853020,-258.5202815,0.00021643,4]
[365236713,1749559853036,-460.0,0.00021643,4]
[365236716,1749559853050,-460.0,0.00021643,4]
[365236719,1749559853064,-460.0,0.00021643,4]
[365236721,1749559853079,-460.0,0.00021643,4]
[365236724,1749559853093,-460.0,0.00021643,4]
[365236726,1749559853107,-460.0,0.00021643,4]
[365236729,1749559853121,-500.0,0.00021673,2]
[365236731,1749559853134,-500.0,0.00021673,2]
[365236734,1749559853148,-500.0,0.00021673,2]
[365236736,1749559853162,-500.0,0.00021673,2]
[365236739,1749559853176,-613.4854085,0.00021673,2]
[365236741,1749559853190,-500.0,0.00021673,2]
[365236744,1749559853205,-500.0,0.00021673,2]
[365236747,1749559853220,-500.0,0.00021673,2]
[365236749,1749559853235,-514.87031705,0.00021673,2]
[365236752,1749559853249,-500.0,0.00021673,2]
[365236754,1749559853264,-500.0,0.00021673,2]
[365236757,1749559853278,-500.0,0.00021673,2]
[365236759,1749559853293,-4341.23,0.00021703,2]
[365236762,1749559853308,-151.0,0.000219,3]
[365236765,1749559853325,-616.02214232,0.000219,6]
[365236767,1749559853335,-500.0,0.00021916,4]
[365236769,1749559853345,-508.01673203,0.00021916,4]
[365236771,1749559853354,-460.0,0.00021917,4]
[365236773,1749559853364,-460.0,0.00021917,4]
[365236787,1749559853483,-363.13593947,0.00021917,4]
[365236790,1749559853502,-460.0,0.00021917,4]
[365236792,1749559853512,-460.0,0.00021917,4]
[365236794,1749559853521,-460.0,0.00021917,4]
[365236796,1749559853532,-460.0,0.00021917,4]
[365236798,1749559853541,-460.0,0.00021917,4]
[365236800,1749559853550,-460.0,0.00021917,4]
[365236802,1749559853560,-460.0,0.00021917,4]
[365236804,1749559853573,-460.0,0.00021917,4]
[365236806,1749559853582,-460.0,0.00021917,4]
[365236808,1749559853591,-460.0,0.00021917,4]
[365236810,1749559853599,-460.0,0.00021917,4]
[365236811,1749559853610,-460.0,0.00021917,4]
[365236813,1749559853619,-460.0,0.00021917,4]
[365236815,1749559853628,-460.0,0.00021917,4]
[365236817,1749559853639,-342.4747655,0.00021917,4]
[365236820,1749559853649,-460.0,0.00021917,4]
[365236821,1749559853659,-460.0,0.00021917,4]
[365236823,1749559853669,-460.0,0.00021917,4]
[365236826,1749559853679,-460.0,0.00021917,4]
[365236828,1749559853689,-460.0,0.00021917,4]
[365236829,1749559853698,-460.0,0.00021917,4]
[365236832,1749559853709,-460.0,0.00021917,4]
[365236834,1749559853719,-460.0,0.00021917,4]
[365236836,1749559853729,-460.0,0.00021917,4]
[365236837,1749559853738,-460.0,0.00021917,4]
[365236839,1749559853747,-460.0,0.00021917,4]
[365236841,1749559853757,-460.0,0.00021917,4]
[365236843,1749559853765,-460.0,0.00021917,4]
[365236845,1749559853775,-460.0,0.00021917,4]
[365236847,1749559853785,-319.61778017,0.00021917,4]
[365236849,1749559853794,-460.0,0.00021917,4]
[365236851,1749559853803,-460.0,0.00021917,4]
[365236854,1749559853813,-666.27,0.00021917,4]
[365236855,1749559853822,-460.0,0.00021917,4]
[365236857,1749559853831,-460.0,0.00021917,4]
[365236859,1749559853840,-340.0,0.00021917,4]
[365236860,1749559853850,-460.0,0.00021917,4]
[365236861,1749559853859,-311.47251944,0.00021917,4]
[365236862,1749559853868,-460.0,0.00021917,4]
[365236863,1749559853877,-460.0,0.00021917,4]
[365236864,1749559853887,-460.0,0.00021917,4]
[365236866,1749559853896,-772.22,0.00021917,4]
[365236868,1749559853905,-460.0,0.00021917,4]
[365236870,1749559853914,-460.0,0.00021917,4]
[365236871,1749559853923,-460.0,0.00021917,4]
[365236874,1749559853933,-511.93017923,0.00021917,4]
[365236876,1749559853942,-460.0,0.00021917,4]
[365236878,1749559853951,-460.0,0.00021917,4]
[365236879,1749559853961,-460.0,0.00021917,4]
[365236881,1749559853970,-460.0,0.00021917,4]
[365236883,1749559853980,-460.0,0.00021917,4]
[365236885,1749559853989,-192.05184211,0.00021917,4]
[365236887,1749559853998,-460.0,0.00021917,4]
[365236890,1749559854007,-460.0,0.00021917,4]
[365236891,1749559854018,-386.6897307,0.00021917,4]
[365236893,1749559854027,-460.0,0.00021917,4]
[365236895,1749559854036,-460.0,0.00021917,4]
[365236897,1749559854046,-153.97957048,0.00021917,4]
[365236899,1749559854055,-460.0,0.00021917,4]
[365236901,1749559854064,-460.0,0.00021917,4]
[365236903,1749559854073,-460.0,0.00021917,4]
[365236905,1749559854082,-460.0,0.00021917,4]
[365236908,1749559854092,-460.0,0.00021917,4]
[365236910,1749559854101,-460.0,0.00021917,4]
[365236912,1749559854110,-400.0,0.00021917,4]
[365236914,1749559854119,-485.94,0.00021917,4]
[365236916,1749559854128,-210.79549072,0.00021917,4]
[365236918,1749559854137,-460.0,0.00021917,4]
[365236920,1749559854147,-460.0,0.00021917,4]
[365236921,1749559854156,-460.0,0.00021917,4]
[365236923,1749559854165,-460.0,0.00021917,4]
[365236926,1749559854174,-460.0,0.00021917,4]
[365236928,1749559854184,-460.0,0.00021917,4]
[365236930,1749559854193,-380.0,0.00021917,4]
[365236932,1749559854202,-460.0,0.00021917,4]
[365236934,1749559854211,-460.0,0.00021917,4]
[365236936,1749559854221,-460.0,0.00021917,4]
[365236938,1749559854231,-506.4959568,0.00021917,4]
[365236940,1749559854239,-460.0,0.00021917,4]
[365236942,1749559854248,-405.76786649,0.00021917,4]
[365236944,1749559854258,-460.0,0.00021917,4]
[365236946,1749559854267,-380.0,0.00021917,4]
[365236948,1749559854276,-460.0,0.00021917,4]
[365236950,1749559854286,-460.0,0.00021917,4]
[365236952,1749559854295,-330.0,0.00021917,4]
[365236954,1749559854305,-235.70686967,0.00021917,4]
[365236955,1749559854314,-324.12063811,0.00021917,4]
[365236958,1749559854323,-380.0,0.00021917,4]
[365236960,1749559854333,-200.0,0.00021917,4]
[365236962,1749559854342,-460.0,0.00021917,4]
[365236963,1749559854351,-460.0,0.00021917,4]
[365236965,1749559854361,-460.0,0.00021917,4]
[365236967,1749559854371,-460.0,0.00021917,4]
[365236969,1749559854380,-460.0,0.00021917,4]
[365236971,1749559854389,-460.0,0.00021917,4]
[365236973,1749559854398,-460.0,0.00021917,4]
[365236975,1749559854408,-460.0,0.00021917,4]
[365236977,1749559854417,-460.0,0.00021917,4]
[365236979,1749559854427,-442.55137291,0.00021917,4]
[365236982,1749559854436,-460.0,0.00021917,4]
[365236984,1749559854445,-460.0,0.00021917,4]
[365236986,1749559854455,-460.0,0.00021917,4]
[365236987,1749559854463,-460.0,0.00021917,4]
[365236989,1749559854473,-2164.3,0.00021917,4]
[365236992,1749559854483,-460.0,0.00021917,4]
[365236994,1749559854492,-461.76,0.00021917,4]
[365236996,1749559854501,-360.0,0.00021917,4]
[365236998,1749559854511,-460.0,0.00021917,4]
[365236999,1749559854520,-502.07,0.00021917,4]
[365237002,1749559854529,-1095.98,0.00021917,4]
[365237003,1749559854539,-460.0,0.00021917,4]
[365237005,1749559854548,-460.0,0.00021917,4]
[365237007,1749559854561,-460.0,0.00021917,4]
[365237009,1749559854570,-460.0,0.00021917,4]
[365237011,1749559854580,-703.92,0.00021917,4]
[365237014,1749559854589,-460.0,0.00021917,4]
[365237016,1749559854599,-766.69,0.00021917,4]
[365237018,1749559854610,-460.0,0.00021917,4]
[365237020,1749559854619,-553.18,0.00021917,4]
[365237021,1749559854628,-460.0,0.00021917,4]
[365237023,1749559854638,-460.0,0.00021917,4]
[365237025,1749559854648,-460.0,0.00021917,4]
[365237027,1749559854658,-380.0,0.00021917,4]
[365237029,1749559854667,-350.0,0.00021917,2]
[365237031,1749559854676,-460.0,0.00021917,4]
[365237033,1749559854685,-460.0,0.00021917,4]
[365237035,1749559854695,-460.0,0.00021917,4]
[365237037,1749559854704,-460.0,0.00021917,4]
[365237039,1749559854714,-1193.4,0.00021917,4]
[365237041,1749559854723,-495.57375839,0.00021917,4]
[365237043,1749559854732,-460.0,0.00021917,4]
[365237045,1749559854741,-460.0,0.00021917,4]
[365237047,1749559854751,-460.0,0.00021917,4]
[365237049,1749559854760,-460.0,0.00021917,4]
[365237051,1749559854770,-460.0,0.00021917,4]
[365237053,1749559854780,-627.74,0.00021917,4]
[365237055,1749559854790,-436.8,0.00021917,4]
[365237057,1749559854800,-460.0,0.00021917,4]
[365237059,1749559854809,-460.0,0.00021917,4]
[365237061,1749559854819,-460.0,0.00021917,4]
[365237063,1749559854829,-279.29015856,0.00021917,4]
[365237065,1749559854838,-460.0,0.00021917,4]
[365237067,1749559854847,-460.0,0.00021917,4]
[365237069,1749559854857,-460.0,0.00021917,4]
[365237071,1749559854867,-484.39,0.00021917,4]
[365237073,1749559854876,-460.0,0.00021917,4]
[365237075,1749559854886,-460.0,0.00021917,4]
[365237077,1749559854896,-1362.12,0.00021917,4]
[365237079,1749559854905,-460.0,0.00021917,4]
[365237081,1749559854915,-460.0,0.00021917,4]
[365237082,1749559854924,-460.0,0.00021917,4]
[365237084,1749559854934,-460.0,0.00021917,4]
[365237086,1749559854943,-460.0,0.00021917,4]
[365237088,1749559854955,-460.0,0.00021917,4]
[365237090,1749559854965,-360.0,0.00021917,4]
[365237092,1749559854975,-460.0,0.00021917,4]
[365237094,1749559854984,-460.0,0.00021917,4]
[365237096,1749559854994,-546.82,0.00021917,4]
[365237098,1749559855004,-761.28,0.00021917,4]
[365237100,1749559855014,-1957.52,0.00021917,4]
[365237102,1749559855023,-511.58,0.00021917,4]
[365237104,1749559855034,-1042.17,0.00021917,4]
[365237106,1749559855043,-460.0,0.00021917,4]
[365237108,1749559855052,-505.29982678,0.00021917,2]
[365237110,1749559855063,-686.58,0.00021917,4]
[365237112,1749559855075,-460.0,0.00021917,4]
[365237114,1749559855084,-460.0,0.00021917,4]
[365237116,1749559855093,-460.0,0.00021917,4]
[365237118,1749559855103,-1188.08,0.00021917,4]
[365237120,1749559855112,-521.1289143,0.00021917,4]
[365237122,1749559855122,-460.0,0.00021917,4]
[365237124,1749559855133,-460.0,0.00021917,4]
[365237126,1749559855145,-460.0,0.00021917,4]
[365237128,1749559855155,-460.0,0.00021917,4]
[365237130,1749559855164,-460.0,0.00021917,4]
[365237131,1749559855173,-460.0,0.00021917,4]
[365237133,1749559855182,-460.0,0.00021917,4]
[365237135,1749559855192,-2495.68,0.00021917,4]
[365237137,1749559855202,-460.0,0.00021917,4]
[365237139,1749559855211,-705.29,0.00021917,4]
[365237141,1749559855221,-460.0,0.00021917,4]
[365237143,1749559855232,-373.12661651,0.00021917,4]
[365237145,1749559855242,-2309.7,0.00021917,4]
[365237147,1749559855252,-460.0,0.00021917,4]
[365237157,1749559855344,-460.0,0.00021917,4]
[365237159,1749559855361,-1981.5,0.00021917,4]
[365237162,1749559855374,-460.0,0.00021917,4]
[365237164,1749559855384,-460.0,0.00021917,4]
[365237166,1749559855394,-683.41,0.00021917,4]
[365237167,1749559855404,-460.0,0.00021917,4]
[365237169,1749559855413,-460.0,0.00021917,4]
[365237171,1749559855423,-460.0,0.00021917,4]
[365237173,1749559855433,-460.0,0.00021917,4]
[365237175,1749559855442,-460.0,0.00021917,4]
[365237177,1749559855453,-460.0,0.00021917,4]
[365237179,1749559855462,-460.0,0.00021917,4]
[365237181,1749559855472,-1032.36,0.00021917,4]
[365237183,1749559855482,-460.0,0.00021917,4]
[365237185,1749559855492,-400.0,0.00021917,4]
[365237187,1749559855502,-460.41,0.00021917,4]
[365237189,1749559855512,-460.0,0.00021917,4]
[365237191,1749559855522,-460.0,0.00021917,4]
[365237193,1749559855532,-460.0,0.00021917,4]
[365237195,1749559855542,-771.85,0.00021917,4]
[365237197,1749559855550,-696.06,0.00021917,4]
[365237199,1749559855560,-1463.68,0.00021917,4]
[365237200,1749559855571,-1641.54,0.00021917,4]
[365237202,1749559855584,-360.0,0.00021917,4]
[365237204,1749559855594,-460.0,0.00021917,4]
[365237206,1749559855603,-2095.73,0.00021917,4]
[365237208,1749559855613,-460.0,0.00021917,4]
[365237210,1749559855622,-460.0,0.00021917,4]
[365237212,1749559855632,-460.0,0.00021917,4]
[365237214,1749559855641,-460.0,0.00021917,4]
[365237216,1749559855651,-840.11,0.00021917,2]
[365237218,1749559855661,-370.0,0.00021917,4]
[365237220,1749559855671,-460.0,0.00021917,4]
[365237222,1749559855680,-460.0,0.00021917,4]
[365237224,1749559855690,-460.0,0.00021917,4]
[365237226,1749559855699,-460.0,0.00021917,4]
[365237228,1749559855709,-257.77088841,0.00021917,4]
[365237229,1749559855718,-460.0,0.00021917,4]
[365237231,1749559855728,-173.51602027,0.00021917,4]
[365237233,1749559855737,-460.0,0.00021917,4]
[365237234,1749559855746,-162.97705615,0.00021918,2]
[365237236,1749559855755,-1003.40524538,0.00021921,2]
[365237238,1749559855765,-546.76755518,0.00021921,2]
[365237239,1749559855774,-1200.0,0.00021921,2]
[365237241,1749559855783,-1000.0,0.00021921,2]
[365237243,1749559855792,-186.0,0.00022,2]
[365237245,1749559855802,-616.0221423,0.00022003,6]
[365237246,1749559855812,-752.59,0.00022064,5]
[365237248,1749559855821,-151.0,0.000221,7]
[365237250,1749559855831,-616.0221423,0.00022107,6]
[365237252,1749559855842,-752.59,0.00022164,7]
[365237253,1749559855851,-1508.96563176,0.00022168,2]
[365237255,1749559855860,-500.0,0.00022168,2]
[365237257,1749559855871,-500.0,0.00022168,2]